bitfinex/quotes_ETHUSD_20250725
["timestamp","ask_amount","ask_price","bid_price","bid_amount"]
[1753473422675,2.556,3645.9,3645.8,1.6589]
[1753473422989,2.556,3645.9,3645.8,0.7633]
[1753473423287,2.556,3645.9,3645.8,1.6589]
[1753473423788,2.556,3645.9,3645.2,2.74325908]
[1753473423789,2.556,3645.9,3645.5,1.2255]
[1753473423993,2.556,3645.9,3645.6,0.4514]
[1753473424308,2.556,3645.9,3645.8,2.74288222]
[1753473424591,14.5,3646.2,3645.9,2.74278166]
[1753473424592,2.557,3646.0,3645.9,2.74278166]
[1753473424824,2.74180783,3647.3,3646.1,0.815]
[1753473425123,2.558,3647.2,3646.8,3.55708216]
[1753473425328,2.558,3647.2,3646.9,3.19343247]
[1753473425619,3.0,3647.1,3647.0,2.74197413]
[1753473425803,17.5,3647.1,3647.0,3.19337413]
[1753473426322,17.5,3647.1,3647.0,0.4514]
[1753473426323,20.059,3647.1,3647.0,0.4514]
[1753473427834,2.559,3647.1,3647.0,3.1933797]
[1753473427982,0.002,3647.7,3647.1,0.7605]
[1753473428191,2.56,3647.7,3647.6,3.50202867]
[1753473428502,2.56,3647.7,3647.6,4.09022867]
[1753473428503,0.002,3647.7,3647.6,4.09022867]
[1753473428878,0.002,3647.7,3647.6,4.77341324]
[1753473429085,0.002,3647.7,3647.6,5.21761324]
[1753473429285,0.002,3647.7,3647.6,5.24502852]
[1753473433293,0.002,3647.7,3647.6,6.90842852]
[1753473433547,0.002,3647.7,3647.6,7.77661324]
[1753473434624,0.002,3647.7,3647.6,4.32201324]
[1753473435126,0.002,3647.7,3647.6,6.87901324]
[1753473435313,0.002,3647.7,3647.6,4.32201324]
[1753473436237,0.002,3647.7,3647.6,0.8973]
[1753473436942,0.002,3647.7,3647.6,3.63882867]
[1753473437346,0.002,3647.7,3647.6,0.8973]
[1753473437549,0.002,3647.7,3647.6,3.63882867]
[1753473442236,0.002,3647.7,3647.6,4.52252867]
[1753473442448,0.002,3647.7,3647.6,5.77850925]
[1753473446752,0.002,3647.7,3647.6,8.32950925]
[1753473447674,0.002,3648.2,3648.1,2.74115292]
[1753473447841,1e-08,3648.4,3648.3,3.55360265]
[1753473448041,1e-08,3648.4,3648.3,7.16970938]
[1753473448356,1e-08,3648.4,3648.3,8.02599936]
[1753473448532,1e-08,3648.4,3648.3,4.59129936]
[1753473448728,1e-08,3648.4,3648.3,7.14229936]
[1753473449555,1e-08,3648.4,3648.3,7.57459936]
[1753473449754,1e-08,3648.4,3648.3,8.02599936]
[1753473450172,1e-08,3648.4,3648.3,5.47499936]
[1753473450355,0.91970001,3648.4,3648.3,5.42880265]
[1753473450668,1e-08,3648.4,3648.3,5.42880265]
[1753473450966,0.91970001,3648.4,3648.3,0.1368]
[1753473451170,0.91970001,3648.4,3648.3,2.6898]
[1753473451970,0.91970001,3648.4,3648.3,5.43080265]
[1753473452145,0.45900001,3648.4,3648.3,5.43080265]
[1753473452354,0.91970001,3648.4,3648.3,5.43080265]
[1753473452741,0.45900001,3648.4,3648.3,2.87780265]
[1753473453073,0.45900001,3648.4,3648.3,5.42980265]
[1753473453376,0.45900001,3648.4,3648.3,0.1368]
[1753473453377,0.91970001,3648.4,3648.3,0.1368]
[1753473453581,0.91970001,3648.4,3648.3,2.6878]
[1753473454062,0.91970001,3648.4,3648.3,5.42880265]
[1753473454996,0.45900001,3648.4,3648.3,5.42880265]
[1753473455697,0.91970001,3648.4,3648.3,5.42880265]
[1753473456001,14.50000001,3648.4,3648.3,5.42880265]
[1753473456218,1e-08,3648.4,3648.3,5.42880265]
[1753473456382,1e-08,3648.4,3648.3,6.34946662]
[1753473456576,1e-08,3648.4,3648.3,6.3220566]
[1753473458973,1e-08,3648.4,3648.3,7.2057566]
[1753473459172,1e-08,3648.4,3648.3,6.3220566]
[1753473461225,0.91970001,3648.4,3648.3,5.45260265]
[1753473461392,0.45900001,3648.4,3648.3,5.45260265]
[1753473461590,14.95900001,3648.4,3648.3,5.45260265]
[1753473462302,0.45900001,3648.4,3648.3,5.45260265]
[1753473462819,1e-08,3648.4,3648.3,5.45260265]
[1753473465993,0.45900001,3648.4,3648.3,5.45260265]
[1753473467291,0.45900001,3648.4,3648.3,2.90560265]
[1753473467529,0.45900001,3648.4,3648.3,5.44960265]
[1753473469195,1e-08,3648.4,3648.3,7.76206874]
[1753473473664,1e-08,3648.5,3648.4,3.52882752]
[1753473473946,1e-08,3648.7,3648.6,3.52867728]
[1753473474110,1e-08,3648.7,3648.6,8.13571035]
[1753473474311,1e-08,3648.7,3648.6,9.01140258]
[1753473474711,1e-08,3648.7,3648.6,15.32777277]
[1753473477113,0.02770001,3648.7,3648.6,15.32777277]
[1753473478620,1e-08,3648.7,3648.6,15.32777277]
[1753473480256,1e-08,3648.7,3648.6,11.88067277]
[1753473480475,0.45840001,3648.7,3648.6,5.56430258]
[1753473480767,0.93170001,3648.7,3648.3,0.001]
[1753473480922,30.0,3648.5,3648.3,0.001]
[1753473481121,0.7987,3648.4,3648.3,0.001]
[1753473481424,16.2304,3648.4,3648.3,0.001]
[1753473482351,23.59436752,3648.4,3648.3,0.001]
[1753473482555,53.59436752,3648.4,3648.3,0.001]
[1753473482761,19.2304,3648.4,3648.3,0.001]
[1753473483424,21.97132752,3648.4,3648.3,0.001]
[1753473483636,19.2304,3648.4,3648.3,0.001]
[1753473485947,19.2304,3648.4,3648.3,0.0288]
[1753473487442,18.4317,3648.4,3648.3,0.1656]
[1753473487760,15.4317,3648.4,3648.3,2.90660265]
[1753473488262,15.4317,3648.4,3648.3,0.1656]
[1753473490055,15.4317,3648.4,3648.3,2.90660265]
[1753473490257,14.9584,3648.4,3648.3,2.90660265]
[1753473490444,1e-08,3648.7,3648.3,0.1656]
[1753473490653,0.7597,3648.5,3648.3,0.0288]
[1753473490825,14.5,3648.4,3648.3,0.0288]
[1753473491026,15.4317,3648.4,3648.3,0.0288]
[1753473491527,18.30942752,3648.4,3648.3,0.0288]
[1753473491980,52.06912752,3648.4,3648.3,0.0288]
[1753473492141,54.07086473,3648.4,3648.3,0.0288]
[1753473492492,54.32540575,3648.4,3648.3,0.0288]
[1753473492768,54.07086473,3648.4,3648.3,0.0288]
[1753473492927,54.3254021,3648.4,3648.3,0.0288]
[1753473494258,24.3254021,3648.4,3648.3,0.0288]
[1753473494563,54.07086473,3648.4,3648.3,0.0288]
[1753473495262,56.61486473,3648.4,3648.3,0.0288]
[1753473495765,58.26286473,3648.4,3648.3,0.0288]
[1753473495972,58.81286473,3648.4,3648.3,0.0288]
[1753473497258,28.81286473,3648.4,3648.3,0.0288]
[1753473497460,56.61486473,3648.4,3648.3,0.0288]
[1753473497637,54.61312752,3648.4,3648.3,0.0288]
[1753473498063,18.7181,3648.4,3648.3,0.0288]
[1753473498261,17.044,3648.4,3648.3,0.0288]
[1753473498456,20.044,3648.4,3648.3,0.0288]
[1753473498936,20.5024,3648.4,3648.3,0.0288]
[1753473499337,17.5,3648.4,3648.3,0.0288]
[1753473499534,17.044,3648.4,3648.3,3.67290265]
[1753473499853,17.044,3648.4,3648.3,0.1656]
[1753473501084,17.5072,3648.4,3648.3,0.1656]
[1753473502059,2.65882,3648.4,3648.3,0.0288]
[1753473502266,0.7937,3649.0,3648.3,6.34517019]
[1753473502559,2.544,3648.9,3648.5,2.74079188]
[1753473502868,2.544,3648.9,3648.4,0.7732]
[1753473502869,3.0,3648.8,3648.6,2.74074601]
[1753473503682,2.544,3648.7,3648.6,2.74074601]
[1753473506387,0.002,3649.1,3648.6,1.61514697]
[1753473506691,14.502,3649.1,3649.0,2.74047684]
[1753473508709,0.002,3649.1,3649.0,2.74047684]
[1753473510687,0.002,3649.1,3648.6,1.16694697]
[1753473510688,0.002,3649.1,3648.6,0.71554697]
[1753473510918,3.4511,3649.0,3648.7,2.74068756]
[1753473511058,0.9081,3648.9,3648.3,0.001]
[1753473511559,30.0,3648.7,3648.3,0.001]
[1753473511778,2.543,3648.6,3648.3,0.001]
[1753473512089,0.8297,3648.5,3648.3,0.001]
[1753473512264,1.7378,3648.5,3648.3,0.1378]
[1753473512468,14.9632,3648.4,3648.3,0.1378]
[1753473514056,15.4081,3648.4,3648.3,0.001]
[1753473514485,17.9511,3648.4,3648.3,0.001]
[1753473515364,19.82918,3648.4,3648.3,0.001]
[1753473516489,14.5,3648.4,3648.3,0.001]
[1753473516687,17.043,3648.4,3648.3,0.001]
[1753473517002,17.5062,3648.4,3648.3,0.001]
[1753473517369,17.9511,3648.4,3648.3,0.001]
[1753473518663,17.5062,3648.4,3648.3,0.001]
[1753473520493,17.9511,3648.4,3648.3,0.001]
[1753473520896,22.84286,3648.4,3648.3,0.001]
[1753473521208,52.97966,3648.4,3648.3,0.001]
[1753473521972,53.23466533,3648.4,3648.3,0.001]
[1753473522373,52.97966,3648.4,3648.3,0.001]
[1753473523013,53.23469133,3648.4,3648.3,0.0288]
[1753473523219,23.23469133,3648.4,3648.3,0.0288]
[1753473523380,53.23469133,3648.4,3648.3,0.0288]
[1753473526214,23.23469133,3648.4,3648.3,0.0288]
[1753473526623,53.23469133,3648.4,3648.3,0.0288]
[1753473527936,17.75503133,3648.4,3648.3,0.0288]
[1753473528094,0.4449,3648.7,3648.3,0.0288]
[1753473528095,1.3752,3648.8,3648.3,0.1656]
[1753473528296,1.3752,3648.8,3648.5,2.74081602]
[1753473528297,0.7752,3648.8,3648.5,2.74081602]
[1753473528533,2.544,3648.7,3648.6,0.1368]
[1753473528697,17.044,3648.7,3648.6,2.87757728]
[1753473528900,17.29916797,3648.7,3648.6,2.87757728]
[1753473529302,17.044,3648.7,3648.6,2.87757728]
[1753473530733,2.543,3648.7,3648.6,1.71278859]
[1753473531041,2.543,3648.7,3648.6,5.26206587]
[1753473531453,2.543,3648.7,3648.6,4.34076587]
[1753473531816,2.543,3648.7,3648.6,0.9453]
[1753473532155,2.9972,3648.7,3648.6,0.1368]
[1753473532355,2.9972,3648.7,3648.6,2.87757728]
[1753473532516,17.043,3648.7,3648.6,2.87757728]
[1753473534454,17.043,3648.7,3648.6,0.1368]
[1753473535326,17.043,3648.7,3648.6,2.74077728]
[1753473536955,17.043,3648.7,3648.5,2.74082354]
[1753473537321,17.4972,3648.7,3648.5,2.74082354]
[1753473537524,17.4972,3648.7,3648.6,2.74077728]
[1753473538423,17.043,3648.7,3648.6,2.74077728]
[1753473538927,17.043,3648.7,3648.6,3.66207728]
[1753473539555,17.043,3648.7,3648.6,2.74077728]
[1753473540263,17.043,3648.7,3648.6,4.38332689]
[1753473540758,17.043,3648.7,3648.6,3.93192689]
[1753473540960,14.5,3648.7,3648.6,3.93192689]
[1753473541260,2.543,3648.7,3648.6,4.38332689]
[1753473541724,17.043,3648.7,3648.6,4.38332689]
[1753473542062,17.045,3648.7,3648.6,3.46202689]
[1753473542262,0.002,3648.7,3648.6,4.23782689]
[1753473542467,0.002,3648.7,3648.6,11.50290485]
[1753473542626,0.002,3648.7,3648.6,4.23782689]
[1753473542969,14.502,3648.7,3648.6,4.23782689]
[1753473543149,14.502,3648.7,3648.6,4.26562689]
[1753473543554,14.502,3648.7,3648.6,5.18692689]
[1753473543752,14.502,3648.7,3648.6,4.73552689]
[1753473543955,17.045,3648.7,3648.6,4.26562689]
[1753473544263,0.002,3648.7,3648.6,4.26562689]
[1753473544466,0.002,3648.7,3648.6,5.21433466]
[1753473544677,1e-08,3648.7,3648.6,11.50329708]
[1753473544829,1e-08,3648.7,3648.6,14.50329708]
[1753473545030,1e-08,3648.7,3648.6,17.59629708]
[1753473545272,1e-08,3648.7,3648.6,17.04629708]
[1753473545574,1e-08,3648.7,3648.6,17.18309708]
[1753473546167,1e-08,3648.7,3648.6,8.32372689]
[1753473546371,1e-08,3648.7,3648.6,10.86672689]
[1753473547748,1e-08,3648.7,3648.6,7.40242689]
[1753473547984,1e-08,3648.7,3648.6,7.86572689]
[1753473548468,1e-08,3648.7,3648.6,6.94442689]
[1753473548648,0.45420001,3648.7,3648.6,4.40242689]
[1753473549247,0.90780001,3648.7,3648.6,0.1646]
[1753473550041,15.40780001,3648.7,3648.6,0.1646]
[1753473550441,18.97280217,3648.7,3648.6,0.0278]
[1753473551149,16.23210001,3648.7,3648.6,0.0278]
[1753473551550,21.97280217,3648.7,3648.6,0.0278]
[1753473551751,26.72576239,3648.7,3648.6,0.0278]
[1753473552371,27.27576239,3648.7,3648.6,0.0278]
[1753473552541,57.27576239,3648.7,3648.6,0.0278]
[1753473552863,57.5306512,3648.7,3648.6,0.0278]
[1753473553048,57.53065345,3648.7,3648.6,0.0278]
[1753473553254,57.48496261,3648.7,3648.6,0.0278]
[1753473553774,57.27576239,3648.7,3648.6,0.0278]
[1753473554681,57.68370207,3648.7,3648.6,0.0278]
[1753473555081,55.14170207,3648.7,3648.6,0.0278]
[1753473555391,24.51480217,3648.7,3648.6,0.0278]
[1753473555673,54.76976583,3648.7,3648.6,0.0278]
[1753473555873,24.76976583,3648.7,3648.6,0.0278]
[1753473556097,21.77410001,3648.7,3648.6,0.0278]
[1753473556275,54.51480217,3648.7,3648.6,0.0278]
[1753473556594,52.22780045,3648.7,3648.6,0.0278]
[1753473556750,24.76980045,3648.7,3648.6,0.0278]
[1753473556950,24.51480217,3648.7,3648.6,0.0278]
[1753473557152,21.77410001,3648.7,3648.6,0.0278]
[1753473557381,24.51480217,3648.7,3648.6,0.0278]
[1753473557551,54.51480217,3648.7,3648.6,0.0278]
[1753473557752,54.76984302,3648.7,3648.6,0.0278]
[1753473558290,52.22784302,3648.7,3648.6,0.0278]
[1753473558458,20.49620001,3648.7,3648.6,0.0278]
[1753473558795,53.69050217,3648.7,3648.6,0.0278]
[1753473559192,55.32204444,3648.7,3648.6,0.0278]
[1753473559494,53.27465361,3648.7,3648.6,0.0278]
[1753473559693,55.81665361,3648.7,3648.6,0.0278]
[1753473560874,2.74152867,3647.6,3647.5,0.001]
[1753473561050,46.20533956,3647.6,3647.5,0.001]
[1753473561250,39.20195024,3647.6,3647.5,0.001]
[1753473561575,56.10003377,3647.6,3647.5,0.001]
[1753473561748,23.1036407,3647.6,3647.5,0.001]
[1753473562066,55.84516937,3647.6,3647.5,0.001]
[1753473562503,53.29416937,3647.6,3647.5,0.001]
[1753473562648,55.84516937,3647.6,3647.5,0.001]
[1753473563851,52.6562407,3647.6,3647.5,0.001]
[1753473564052,20.051,3647.6,3647.5,0.0352]
[1753473564379,50.9572,3647.6,3647.5,0.0352]
[1753473564565,53.69872867,3647.6,3647.5,0.0352]
[1753473565712,54.50342867,3647.6,3647.5,0.0352]
[1753473566007,55.05342867,3647.6,3647.5,0.0352]
[1753473567888,55.05342867,3647.6,3647.1,0.001]
[1753473567889,2.74182934,3647.2,3647.1,0.001]
[1753473568074,46.10659953,3647.2,3647.1,0.001]
[1753473568288,47.01279953,3647.2,3647.1,0.001]
[1753473568493,61.51279953,3647.2,3647.1,0.001]
[1753473568894,64.21189129,3647.2,3647.1,0.001]
[1753473569215,58.96379953,3647.2,3647.1,0.001]
[1753473569508,61.51379953,3647.2,3647.1,0.001]
[1753473570071,51.74122934,3647.2,3647.1,0.001]
[1753473570308,52.92762934,3647.2,3647.1,0.001]
[1753473570487,50.5078,3647.2,3647.1,0.001]
[1753473570995,53.24962934,3647.2,3647.1,0.001]
[1753473571306,55.04792934,3647.2,3647.1,0.001]
[1753473572129,52.49892934,3647.2,3647.1,0.001]
[1753473572273,48.3009,3647.2,3647.1,0.001]
[1753473572476,20.049,3647.2,3647.1,0.001]
[1753473572806,17.049,3647.2,3647.1,0.001]
[1753473573114,17.6368,3647.2,3647.1,0.001]
[1753473573273,20.048,3647.2,3647.1,0.001]
[1753473573693,17.5,3647.2,3647.1,0.001]
[1753473573880,17.048,3647.2,3647.1,0.8862]
[1753473574287,14.5,3647.2,3647.1,0.4348]
[1753473574509,17.048,3647.2,3647.1,0.4348]
[1753473575110,52.2571,3647.2,3647.1,0.001]
[1753473575478,56.64792934,3647.2,3647.1,0.001]
[1753473576099,26.64792934,3647.2,3647.1,0.001]
[1753473576271,54.09892934,3647.2,3647.1,0.001]
[1753473576471,56.64792934,3647.2,3647.1,0.001]
[1753473576786,54.09892934,3647.2,3647.1,0.001]
[1753473576983,54.55252934,3647.2,3647.1,0.001]
[1753473577382,54.99992934,3647.2,3647.1,0.001]
[1753473577582,56.9017887,3647.2,3647.1,0.001]
[1753473578806,54.3527887,3647.2,3647.1,0.001]
[1753473578986,56.9017887,3647.2,3647.1,0.001]
[1753473579999,54.3527887,3647.2,3647.1,0.001]
[1753473580210,53.65152934,3647.2,3647.1,0.001]
[1753473580411,50.048,3647.2,3647.1,0.001]
[1753473580625,20.049,3647.2,3647.1,0.001]
[1753473581227,17.5,3647.2,3647.1,0.001]
[1753473581428,30.0,3648.0,3647.1,1.6668]
[1753473581733,3.0,3647.8,3647.2,2.74182934]
[1753473581891,3.0,3647.6,3647.3,2.74173946]
[1753473582098,2.55,3647.5,3647.3,3.62693946]
[1753473582294,2.549,3647.4,3647.1,0.94848]
[1753473582509,2.549,3647.4,3647.1,3.52350181]
[1753473582912,14.5,3647.3,3647.1,4.40870181]
[1753473583228,2.55,3647.2,3647.1,3.52350181]
[1753473583526,2.55,3647.2,3647.1,0.7816]
[1753473583727,2.55,3647.2,3647.1,3.66030452]
[1753473583952,2.55,3647.2,3647.1,4.54550452]
[1753473584133,0.1368,3647.7,3647.1,4.54550452]
[1753473584338,5.549,3647.6,3647.1,0.7816]
[1753473584496,3.3712,3647.5,3647.1,0.001]
[1753473584697,2.553,3647.5,3647.1,0.001]
[1753473584899,3.0,3647.5,3647.1,0.4524]
[1753473585111,2.553,3647.4,3647.1,0.8862]
[1753473585432,2.553,3647.3,3647.1,0.001]
[1753473586219,3.0,3647.5,3647.1,0.001]
[1753473586535,3.0,3647.5,3647.2,0.7683]
[1753473586536,2.553,3647.4,3647.2,0.7683]
[1753473586704,2.553,3647.4,3647.1,0.8862]
[1753473586705,2.553,3647.4,3647.1,0.001]
[1753473587733,4.3242,3647.2,3647.1,0.001]
[1753473587937,9.61702934,3647.2,3647.1,0.001]
[1753473588243,24.57582934,3647.2,3647.1,0.001]
[1753473588403,54.57582934,3647.2,3647.1,0.001]
[1753473588605,55.02322934,3647.2,3647.1,0.001]
[1753473588816,25.27807618,3647.2,3647.1,0.001]
[1753473589020,25.02322934,3647.2,3647.1,0.001]
[1753473589415,55.02322934,3647.2,3647.1,0.001]
[1753473590247,54.57582934,3647.2,3647.1,0.001]
[1753473590441,25.03852934,3647.2,3647.1,0.001]
[1753473590751,55.03852934,3647.2,3647.1,0.001]
[1753473591251,56.94264281,3647.2,3647.1,0.001]
[1753473591452,57.09571171,3647.2,3647.1,0.001]
[1753473592252,57.09571171,3647.2,3647.1,1e-08]
[1753473592253,57.09570702,3647.2,3647.1,1e-08]
[1753473593441,57.09470702,3647.2,3647.1,1e-08]
[1753473593619,35.7143797,3647.0,3646.9,1e-08]
[1753473593819,41.67355738,3647.0,3646.9,1e-08]
[1753473594026,42.59505738,3647.0,3646.9,1e-08]
[1753473594229,7.94013008,3646.8,3646.7,1e-08]
[1753473594547,41.80910776,3646.8,3646.7,1e-08]
[1753473594746,12.01851653,3646.8,3646.7,1e-08]
[1753473595058,57.44001653,3646.8,3646.7,1e-08]
[1753473595221,54.88901653,3646.8,3646.7,1e-08]
[1753473595420,57.581511,3646.8,3646.7,1e-08]
[1753473595920,55.029511,3646.8,3646.7,1e-08]
[1753473596119,57.581511,3646.8,3646.7,1e-08]
[1753473596432,57.4284421,3646.8,3646.7,1e-08]
[1753473596634,57.58129111,3646.8,3646.7,1e-08]
[1753473597033,57.7246338,3646.8,3646.7,1e-08]
[1753473597630,57.37473056,3646.8,3646.7,1e-08]
[1753473597832,35.71358131,3646.2,3646.1,0.001]
[1753473598019,41.8113391,3646.2,3646.1,0.001]
[1753473598232,42.7328391,3646.2,3646.1,0.001]
[1753473598438,57.2328391,3646.2,3646.1,0.001]
[1753473600136,54.6633391,3646.2,3646.1,0.001]
[1753473600731,53.8903391,3646.2,3646.1,0.001]
[1753473601462,53.88962574,3646.2,3646.1,0.001]
[1753473601839,32.74295745,3645.7,3645.6,0.001]
[1753473602157,38.68515287,3645.7,3645.6,0.001]
[1753473602762,53.18515287,3645.7,3645.6,0.001]
[1753473602965,55.00106517,3645.7,3645.6,0.001]
[1753473603165,55.43136517,3645.7,3645.6,0.001]
[1753473603549,55.43129901,3645.7,3645.6,0.001]
[1753473604181,53.59935287,3645.7,3645.6,0.001]
[1753473604404,20.30639542,3645.7,3645.6,0.001]
[1753473604620,20.052,3645.7,3645.6,0.9216]
[1753473604744,17.052,3645.7,3645.6,1.09487]
[1753473604947,17.052,3645.7,3645.6,4.60110269]
[1753473605279,2.553,3646.2,3646.0,0.7632]
[1753473605481,2.553,3646.2,3646.0,3.50592801]
[1753473605680,5.553,3646.2,3646.1,0.9206]
[1753473606046,20.053,3646.2,3646.1,0.4692]
[1753473606360,20.053,3646.2,3646.1,0.9206]
[1753473606545,2.553,3646.2,3646.1,0.9206]
[1753473606746,2.8856,3647.5,3646.4,0.8137]
[1753473606984,3.0,3647.1,3646.5,0.9206]
[1753473607283,2.553,3647.0,3646.5,0.4692]
[1753473607471,2.553,3647.0,3646.7,0.8174]
[1753473607676,2.553,3647.0,3646.8,0.9206]
[1753473607852,2.553,3647.0,3646.9,0.9206]
[1753473609748,2.553,3647.0,3646.7,0.8174]
[1753473609962,2.553,3647.0,3646.7,1.738]
[1753473610158,2.553,3647.0,3646.8,2.74212699]
[1753473610365,2.553,3647.0,3646.9,0.9206]
[1753473611681,2.553,3647.0,3646.7,0.8174]
[1753473611869,30.0,3646.9,3646.7,0.8174]
[1753473612077,2.55,3646.8,3646.7,0.8174]
[1753473612695,2.55,3646.8,3646.7,1.738]
[1753473612893,2.55,3646.8,3646.7,1.8748]
[1753473613064,2.55,3646.8,3646.7,1.8856]
[1753473613258,2.549,3647.0,3646.7,4.62779907]
[1753473613461,2.549,3647.0,3646.8,0.9206]
[1753473614167,0.002,3647.5,3647.1,0.7814]
[1753473614358,0.002,3647.5,3647.2,0.9206]
[1753473614560,33.232879,3647.4,3647.1,0.7814]
[1753473614759,2.74184449,3647.2,3646.8,0.7814]
[1753473614978,32.74178112,3647.3,3646.8,0.7814]
[1753473615180,2.74178502,3647.3,3646.8,0.7814]
[1753473615498,14.5,3647.2,3646.8,0.7814]
[1753473615999,17.24184633,3647.2,3646.8,0.7814]
[1753473616208,14.5,3647.2,3646.8,0.7814]
[1753473616378,14.5,3647.2,3646.7,0.0108]
[1753473616379,2.7420189,3647.0,3646.7,0.0108]
[1753473616571,2.555,3646.9,3646.7,0.0108]
[1753473616783,5.7882759,3646.9,3646.7,0.0108]
[1753473617095,2.554,3647.1,3646.7,0.0108]
[1753473617296,2.74213008,3646.8,3646.7,0.0108]
[1753473617478,0.4912,3646.9,3646.7,0.0108]
[1753473617671,2.74207842,3646.9,3646.7,0.0108]
[1753473617888,5.72622391,3647.1,3646.7,0.0108]
[1753473617889,2.74201129,3647.0,3646.7,0.0108]
[1753473618105,0.4912,3646.9,3646.7,0.0108]
[1753473618271,2.554,3646.8,3646.7,0.0108]
[1753473618465,39.76763008,3646.8,3646.7,0.0108]
[1753473619221,54.26763008,3646.8,3646.7,0.0108]
[1753473619865,51.71363008,3646.8,3646.7,0.0108]
[1753473620205,54.26763008,3646.8,3646.7,0.0108]
[1753473620406,56.05538681,3646.8,3646.7,0.0108]
[1753473621767,55.62508681,3646.8,3646.7,0.0108]
[1753473623110,56.07948681,3646.8,3646.7,0.0108]
[1753473623699,56.09358681,3646.8,3646.7,0.0108]
[1753473624165,56.23038681,3646.8,3646.7,0.0108]
[1753473625967,20.2049,3646.8,3646.7,0.0108]
[1753473626169,20.0681,3646.8,3646.7,0.8128]
[1753473626413,17.0681,3646.8,3646.7,1.7309]
[1753473626725,20.0681,3646.8,3646.7,1.7309]
[1753473626867,2.5681,3646.8,3646.7,5.2083365]
[1753473627066,2.5681,3646.8,3646.7,5.3451365]
[1753473627410,0.0141,3646.8,3646.7,0.9496]
[1753473627612,0.0161,3646.8,3646.7,0.9496]
[1753473628570,0.0161,3646.8,3646.7,1.8677]
[1753473629770,0.0161,3646.8,3646.7,1.4163]
[1753473629965,0.0161,3646.8,3646.7,0.9496]
[1753473630171,0.0161,3646.8,3646.7,1.8677]
[1753473630810,0.0161,3646.8,3646.7,0.9496]
[1753473632115,2.5671,3646.8,3646.7,4.60990528]
[1753473632490,0.0161,3646.8,3646.7,5.34512994]
[1753473635843,0.0161,3646.8,3646.7,1.68482466]
[1753473635992,0.0161,3646.8,3646.7,0.0108]
[1753473635993,0.93,3646.8,3646.7,0.0108]
[1753473636192,0.4756,3646.8,3646.7,0.0108]
[1753473636398,0.0161,3646.8,3646.7,0.0108]
[1753473637696,0.4756,3646.8,3646.7,0.0108]
[1753473637891,2.6042,3646.8,3646.7,0.0108]
[1753473638132,38.48313008,3646.8,3646.7,0.0108]
[1753473639127,8.48313008,3646.8,3646.7,0.0108]
[1753473639318,38.48313008,3646.8,3646.7,0.0108]
[1753473639905,40.13113008,3646.8,3646.7,0.0108]
[1753473642576,41.03513008,3646.8,3646.7,0.0108]
[1753473644056,38.8906549,3646.8,3646.7,0.0108]
[1753473644261,41.4426549,3646.8,3646.7,0.0108]
[1753473644429,41.4426549,3646.8,3645.6,0.9191]
[1753473644430,33.29295745,3645.7,3645.6,0.001]
[1753473644627,38.98075745,3645.7,3645.6,0.001]
[1753473644827,9.64633816,3645.7,3645.6,0.001]
[1753473645076,10.10073816,3645.7,3645.6,0.001]
[1753473645379,40.10073816,3645.7,3645.6,0.001]
[1753473645580,40.44863816,3645.7,3645.6,0.001]
[1753473646262,39.99423816,3645.7,3645.6,0.001]
[1753473646775,38.43075745,3645.7,3645.6,0.001]
[1753473647366,35.6878,3645.7,3645.6,0.001]
[1753473647671,35.6878,3645.7,3645.6,4.44363269]
[1753473647672,2.551,3645.7,3645.6,4.44363269]
[1753473647871,2.551,3645.7,3645.6,4.58043269]
[1753473648981,3.0,3645.8,3645.6,4.58043269]
[1753473649130,3.0,3645.8,3645.6,4.39469425]
[1753473649330,3.0,3645.8,3645.7,0.9181]
[1753473649639,3.0,3645.8,3645.7,3.66105745]
[1753473650770,3.0,3645.8,3645.7,0.9181]
[1753473650970,3.0,3645.8,3645.6,0.9193]
[1753473651160,5.56,3645.7,3645.6,0.9193]
[1753473651471,2.34192962,3645.7,3645.6,4.50077768]
[1753473651671,0.4941,3646.6,3646.2,2.74257617]
[1753473651672,0.39132639,3646.6,3646.2,2.74257617]
[1753473651854,2.56,3646.5,3646.0,4.01303176]
[1753473652059,3.0,3646.4,3646.1,2.87945018]
[1753473652372,3.0,3646.4,3646.1,0.1368]
[1753473652570,3.0,3646.4,3646.1,2.87944981]
[1753473652747,2.56,3646.3,3646.1,4.08812533]
[1753473653069,2.56,3646.2,3646.1,4.53952533]
[1753473654570,2.56,3646.2,3646.1,1.34547552]
[1753473654867,2.56,3646.2,3646.1,0.87327552]
[1753473655483,2.558,3646.2,3646.1,0.87327552]
[1753473657286,2.558,3646.2,3646.1,3.61593205]
[1753473657482,2.558,3646.2,3646.1,0.87327552]
[1753473658084,2.558,3646.2,3646.1,0.1368]
[1753473660456,0.1368,3646.6,3646.1,0.1368]
[1753473660651,3.0,3646.4,3646.1,0.1368]
[1753473661293,0.9597,3646.3,3645.6,0.8303]
[1753473661594,0.4941,3646.2,3645.8,0.1368]
[1753473661793,2.554,3646.1,3645.8,0.1368]
[1753473662087,0.4941,3646.0,3645.8,0.1368]
[1753473662487,0.4941,3646.0,3645.6,0.001]
[1753473662488,33.70250698,3645.9,3645.6,0.001]
[1753473662686,2.74288502,3645.8,3645.6,0.001]
[1753473662980,2.6898,3645.7,3645.6,0.001]
[1753473663179,1.0965,3645.7,3645.6,0.001]
[1753473663380,2.554,3645.7,3645.6,0.001]
[1753473664062,2.554,3645.7,3645.6,0.9542]